fUST/lending_fUST_20240608
["ID","MTS","AMOUNT","RATE_DAILY","PERIOD"]
[328827679,1717849838465,-200.0224387,0.00015943,2]
[328827680,1717849838475,-176.87113856,0.00015944,2]
[328827682,1717849838485,-1200.0,0.00016,2]
[328827684,1717849838495,-11395.03295591,0.00016,2]
[328827700,1717849838646,-1169.62442848,0.00016,2]
[328828112,1717849843547,-330.29329238,0.00016,2]
[328828113,1717849843560,-803.86178006,0.00016,2]
[328828114,1717849843572,-1000.0,0.00016,2]
[328828204,1717849925824,1100.44389189,0.00015,2]
[328828205,1717849926642,552.59,0.00010959,2]
[328828206,1717849929070,503.98399194,9.999e-05,2]
[328828207,1717849937129,460.49,0.00010959,2]
[328828208,1717849947908,383.74,0.00010959,2]
[328828209,1717849958700,319.78,0.00010959,2]
[328828210,1717849969206,266.49,0.00010959,2]
[328828211,1717849979728,222.07,0.00010959,2]
[328828212,1717849990457,185.06,0.00010959,2]
[328828213,1717850000975,154.22,0.00010959,2]
[328828214,1717850011880,771.11,0.00010959,2]
[328828218,1717850136350,24900.0,0.00014982,2]
[328828219,1717850286032,154.98450155,9.999e-05,2]
[328828221,1717850704509,2715.12477898,9.999e-05,2]
[328828222,1717850742082,154.98450155,9.999e-05,2]
[328828223,1717850794702,986.06345531,0.00025,60]
[328828280,1717851036125,-154.98450155,0.00015638,2]
[328828281,1717851036135,-187.7942234,0.00015639,2]
[328828282,1717851036145,-4237.72657179,0.00015871,2]
[328828283,1717851036154,-202.20866433,0.000159,2]
[328828284,1717851036165,-176.87113855,0.000159,2]
[328828285,1717851036175,-804.81578915,0.00015921,2]
[328828286,1717851036185,-164.59629886,0.00015997,2]
[328828287,1717851036195,-181.67894173,0.00015997,2]
[328828288,1717851036204,-1178.11855971,0.00015997,2]
[328828289,1717851036214,-1903.86188157,0.00015997,2]
[328828290,1717851036223,-553.4320292,0.00015997,2]
[328828291,1717851036233,-201.60500962,0.00015997,2]
[328828292,1717851036244,-199.07804068,0.00015997,2]
[328828293,1717851036254,-593.02799574,0.00015998,2]
[328828294,1717851036263,-32671.31638296,0.00015999,2]
[328828308,1717851038970,-9422.50736884,0.00015999,2]
[328828309,1717851038980,-15301.7992761,0.00016,2]
[328828310,1717851038990,-357.43769757,0.00016,2]
[328828311,1717851039000,-600.0,0.00016044,2]
[328828312,1717851039010,-156.34628117,0.00016096,3]
[328828313,1717851039020,-600.0,0.00016211,2]
[328828314,1717851039030,-516.11071645,0.00016235,2]
[328828315,1717851039041,-107649.91267038,0.00016259,2]
[328828316,1717851039051,-516.11071645,0.00016261,2]
[328828317,1717851039061,-499.0,0.00016263,2]
[328828318,1717851039073,-151.643,0.00016263,2]
[328828319,1717851039083,-150.0,0.00016263,2]
[328828320,1717851039093,-210.098,0.00016263,2]
[328828321,1717851039103,-767.85577405,0.0001627,2]
[328828322,1717851039113,-516.11071645,0.00016287,2]
[328828323,1717851039123,-151.0,0.00016312,2]
[328828324,1717851039133,-516.11071645,0.00016312,2]
[328828325,1717851039143,-1689.82993633,0.00016335,2]
[328828326,1717851039154,-2440.15741232,0.00016335,2]
[328828327,1717851039164,-1683.19123106,0.00016337,2]
[328828328,1717851039174,-151.0,0.00016337,2]
[328828329,1717851039184,-151.0,0.00016337,2]
[328828330,1717851039194,-151.0,0.00016337,2]
[328828331,1717851039204,-152.785277,0.00016337,2]
[328828332,1717851039214,-1003.37032,0.00016337,2]
[328828333,1717851039224,-1003.37032,0.00016337,2]
[328828334,1717851039234,-151.0,0.00016337,2]
[328828335,1717851039245,-157.961847,0.00016337,2]
[328828336,1717851039256,-151.0,0.00016337,2]
[328828337,1717851039267,-151.0,0.00016337,2]
[328828338,1717851039277,-151.0,0.00016337,2]
[328828339,1717851039287,-169.009514,0.00016337,2]
[328828340,1717851039300,-151.0,0.00016337,2]
[328828341,1717851039310,-156.284908,0.00016337,2]
[328828342,1717851039321,-174.555977,0.00016337,2]
[328828343,1717851039331,-174.555977,0.00016337,2]
[328828344,1717851039342,-174.555977,0.00016337,2]
[328828345,1717851039352,-174.555977,0.00016337,2]
[328828346,1717851039361,-151.0,0.00016337,2]
[328828347,1717851039372,-151.0,0.00016337,2]
[328828348,1717851039384,-151.0,0.00016337,2]
[328828349,1717851039394,-151.0,0.00016337,2]
[328828350,1717851039404,-151.0,0.00016337,2]
[328828351,1717851039414,-151.0,0.00016337,2]
[328828352,1717851039424,-151.0,0.00016337,2]
[328828353,1717851039434,-151.0,0.00016337,2]
[328828354,1717851039444,-151.0,0.00016337,2]
[328828355,1717851039454,-328.005105,0.00016337,2]
[328828356,1717851039464,-328.005105,0.00016337,2]
[328828357,1717851039474,-328.005105,0.00016337,2]
[328828358,1717851039484,-328.005105,0.00016337,2]
[328828359,1717851039494,-154.338792,0.00016337,2]
[328828360,1717851039505,-573.791172,0.00016337,2]
[328828361,1717851039515,-573.791172,0.00016337,2]
[328828362,1717851039525,-573.791172,0.00016337,2]
[328828363,1717851039535,-573.791172,0.00016337,2]
[328828364,1717851039545,-151.0,0.00016337,2]
[328828365,1717851039555,-151.0,0.00016337,2]
[328828366,1717851039565,-151.0,0.00016338,2]
[328828367,1717851039576,-153.149627,0.00016338,2]
[328828368,1717851039586,-151.0,0.00016338,2]
[328828369,1717851039597,-151.0,0.00016338,2]
[328828370,1717851039608,-151.0,0.00016338,2]
[328828371,1717851039618,-151.0,0.00016338,2]
[328828372,1717851039628,-151.0,0.00016338,2]
[328828373,1717851039638,-151.0,0.00016338,2]
[328828374,1717851039648,-1003.37032,0.00016338,2]
[328828375,1717851039659,-1003.37032,0.00016338,2]
[328828376,1717851039668,-151.0,0.00016338,2]
[328828377,1717851039678,-151.0,0.00016338,2]
[328828378,1717851039688,-151.0,0.00016338,2]
[328828379,1717851039699,-151.0,0.00016338,2]
[328828380,1717851039709,-516.11071645,0.00016338,2]
[328828381,1717851039720,-174.555977,0.00016338,2]
[328828382,1717851039730,-174.555977,0.00016338,2]
[328828383,1717851039741,-174.555977,0.00016338,2]
[328828384,1717851039751,-174.555977,0.00016338,2]
[328828385,1717851039760,-151.0,0.00016338,2]
[328828386,1717851039770,-151.0,0.00016338,2]
[328828387,1717851039780,-151.0,0.00016338,2]
[328828388,1717851039790,-151.0,0.00016338,2]
[328828389,1717851039800,-160.093609,0.00016338,2]
[328828390,1717851039811,-151.0,0.00016338,2]
[328828391,1717851039822,-151.0,0.00016338,2]
[328828392,1717851039832,-328.005105,0.00016338,2]
[328828393,1717851039842,-328.005105,0.00016338,2]
[328828394,1717851039852,-328.005105,0.00016338,2]
[328828395,1717851039862,-328.005105,0.00016338,2]
[328828396,1717851039871,-573.791172,0.00016338,2]
[328828397,1717851039881,-573.791172,0.00016338,2]
[328828398,1717851039891,-573.791172,0.00016338,2]
[328828399,1717851039900,-573.791172,0.00016338,2]
[328828400,1717851039910,-151.0,0.00016338,2]
[328828401,1717851039920,-300.051221,0.00016338,2]
[328828402,1717851039930,-600.0,0.00016378,2]
[328828403,1717851039940,-151.0,0.00016378,2]
[328828404,1717851039950,-151.0,0.00016378,2]
[328828405,1717851039960,-151.0,0.00016378,2]
[328828406,1717851039970,-151.0,0.00016378,2]
[328828407,1717851039980,-151.0,0.00016378,2]
[328828408,1717851039990,-1003.37032,0.00016378,2]
[328828409,1717851040000,-1003.37032,0.00016378,2]
[328828410,1717851040010,-255.385865,0.00016378,2]
[328828411,1717851040020,-151.0,0.00016378,2]
[328828412,1717851040030,-174.555977,0.00016378,2]
[328828413,1717851040041,-174.555977,0.00016378,2]
[328828414,1717851040052,-151.0,0.00016378,2]
[328828415,1717851040062,-151.0,0.00016378,2]
[328828416,1717851040073,-151.0,0.00016378,2]
[328828417,1717851040083,-328.005105,0.00016378,2]
[328828418,1717851040093,-328.005105,0.00016378,2]
[328828419,1717851040228,-573.791172,0.00016378,2]
[328828420,1717851040239,-573.791172,0.00016378,2]
[328828421,1717851040250,-1503.72395018,0.00016388,2]
[328828422,1717851040261,-10412.94002472,0.00016388,2]
[328828423,1717851040272,-151.0,0.00016388,2]
[328828424,1717851040282,-175.556993,0.00016388,2]
[328828425,1717851040293,-155.768776,0.00016388,2]
[328828426,1717851040307,-151.0,0.00016388,2]
[328828427,1717851040317,-151.0,0.00016388,2]
[328828428,1717851040327,-151.0,0.00016388,2]
[328828429,1717851040337,-155.928253,0.00016388,2]
[328828430,1717851040349,-151.0,0.00016388,2]
[328828431,1717851040359,-151.0,0.00016388,2]
[328828432,1717851040368,-1003.37032,0.00016388,2]
[328828433,1717851040379,-1003.37032,0.00016388,2]
[328828434,1717851040390,-1003.37032,0.00016388,2]
[328828435,1717851040400,-1003.37032,0.00016388,2]
[328828436,1717851040410,-151.0,0.00016388,2]
[328828437,1717851040420,-151.0,0.00016388,2]
[328828438,1717851040430,-151.0,0.00016388,2]
[328828439,1717851040439,-151.0,0.00016388,2]
[328828440,1717851040449,-174.555977,0.00016388,2]
[328828441,1717851040459,-174.555977,0.00016388,2]
[328828442,1717851040469,-174.555977,0.00016388,2]
[328828443,1717851040478,-174.555977,0.00016388,2]
[328828444,1717851040489,-174.555977,0.00016388,2]
[328828445,1717851040499,-174.555977,0.00016388,2]
[328828446,1717851040509,-174.555977,0.00016388,2]
[328828447,1717851040519,-174.555977,0.00016388,2]
[328828448,1717851040529,-151.0,0.00016388,2]
[328828449,1717851040538,-151.0,0.00016388,2]
[328828450,1717851040548,-151.0,0.00016388,2]
[328828451,1717851040557,-151.0,0.00016388,2]
[328828452,1717851040567,-184.63002,0.00016388,2]
[328828453,1717851040577,-151.0,0.00016388,2]
[328828454,1717851040587,-158.288148,0.00016388,2]
[328828455,1717851040597,-328.005105,0.00016388,2]
[328828456,1717851040608,-328.005105,0.00016388,2]
[328828457,1717851040617,-328.005105,0.00016388,2]
[328828458,1717851040627,-328.005105,0.00016388,2]
[328828459,1717851040637,-328.005105,0.00016388,2]
[328828460,1717851040647,-328.005105,0.00016388,2]
[328828461,1717851040656,-144.27686684,0.00016388,2]
[328828462,1717851040669,-183.72823816,0.00016388,2]
[328828463,1717851040679,-328.005105,0.00016388,2]
[328828464,1717851040689,-573.791172,0.00016388,2]
[328828465,1717851040699,-573.791172,0.00016388,2]
[328828466,1717851040709,-573.791172,0.00016388,2]
[328828467,1717851040718,-573.791172,0.00016388,2]
[328828468,1717851040728,-573.791172,0.00016388,2]
[328828469,1717851040738,-573.791172,0.00016388,2]
[328828470,1717851040747,-573.791172,0.00016388,2]
[328828471,1717851040758,-573.791172,0.00016388,2]
[328828472,1717851040768,-3897.39728249,0.0001639,2]
[328828473,1717851040781,-1271.46,0.0001639,2]
[328828474,1717851040792,-500.0,0.0001639,2]
[328828475,1717851040804,-1649.6172459,0.0001639,2]
[328828476,1717851040814,-151.0,0.0001639,2]
[328828477,1717851040825,-1003.37032,0.0001639,2]
[328828478,1717851040835,-753.1624341,0.0001639,2]
[328828495,1717851042949,-250.2078859,0.0001639,2]
[328828496,1717851042959,-1003.37032,0.0001639,2]
[328828497,1717851042968,-1003.37032,0.0001639,2]
[328828498,1717851042978,-151.0,0.0001639,2]
[328828499,1717851042987,-174.555977,0.0001639,2]
[328828500,1717851042997,-174.555973,0.0001639,2]
[328828501,1717851043007,-151.0,0.0001639,2]
[328828502,1717851043017,-328.005105,0.0001639,2]
[328828503,1717851043027,-328.005102,0.0001639,2]
[328828504,1717851043037,-573.791172,0.0001639,2]
[328828505,1717851043047,-573.791182,0.0001639,2]
[328828506,1717851043057,-5990.3045975,0.00016398,2]
[328828509,1717851043068,-1003.37032,0.00016398,2]
[328828511,1717851043078,-1003.37032,0.00016398,2]
[328828513,1717851043087,-21341.61970667,0.000164,2]
[328828514,1717851043099,-7889.67242369,0.000164,2]
[328828515,1717851043109,-1003.37032,0.000164,2]
[328828516,1717851043119,-1003.37032,0.000164,2]
[328828517,1717851043128,-1003.37032,0.000164,2]
[328828518,1717851043138,-1003.37033,0.000164,2]
[328828519,1717851043147,-27870.76460292,0.00016435,2]
[328828520,1717851043160,-7065.92640712,0.00016435,2]
[328828521,1717851043169,-721.95297279,0.00016436,2]
[328828522,1717851043179,-1599.50813717,0.00016436,2]
[328828524,1717851043189,-177.78637968,0.00016436,2]
[328828526,1717851043198,-1267.72091847,0.00016436,2]
[328828527,1717851043208,-10539.6485585,0.00016436,2]
[328828528,1717851043218,-1458.63307318,0.00016436,2]
[328828529,1717851043227,-5020.29263718,0.00016436,2]
[328828530,1717851043237,-528.92049915,0.00016436,2]
[328828531,1717851043247,-685.82864286,0.00016436,2]
[328828532,1717851043256,-13732.07964041,0.00016437,2]
[328828541,1717851043770,-4835.03293046,0.00016437,2]
[328828545,1717851043891,-790.0,0.00016437,2]
[328828554,1717851049217,-3580.01008431,0.00016259,2]
[328828555,1717851049228,-3305.36901511,0.00016437,2]
[328828556,1717851049238,-500.0,0.00016438,2]
[328828557,1717851049250,-500.0,0.00016438,2]
[328828558,1717851049261,-500.0,0.00016438,2]
[328828559,1717851049271,-500.0,0.00016438,2]
[328828560,1717851049281,-500.0,0.00016438,2]
[328828561,1717851049290,-500.0,0.00016438,2]
[328828562,1717851049308,-500.0,0.00016438,2]
[328828563,1717851049319,-500.0,0.00016438,2]
[328828564,1717851049329,-500.0,0.00016438,2]
[328828565,1717851049339,-421.48273552,0.00016438,2]
[328828566,1717851049351,-500.0,0.00016438,2]
[328828567,1717851049361,-500.0,0.00016438,2]
[328828568,1717851049371,-500.0,0.00016438,2]
[328828569,1717851049380,-500.0,0.00016438,2]
[328828570,1717851049391,-500.0,0.00016438,2]
[328828571,1717851049401,-500.0,0.00016438,2]
[328828572,1717851049411,-500.0,0.00016438,2]
[328828573,1717851049422,-500.0,0.00016438,2]
[328828574,1717851049431,-500.0,0.00016438,2]
[328828575,1717851049441,-500.0,0.00016438,2]
[328828576,1717851049451,-500.0,0.00016438,2]
[328828577,1717851049461,-703.23,0.00016438,2]
[328828578,1717851049471,-500.0,0.00016438,2]
[328828579,1717851049481,-500.0,0.00016438,2]
[328828580,1717851049491,-609.81422858,0.00016438,2]
[328828581,1717851049503,-1177.87,0.00016438,2]
[328828582,1717851049513,-500.0,0.00016438,2]
[328828583,1717851049523,-500.0,0.00016438,2]
[328828584,1717851049533,-500.0,0.00016438,2]
[328828585,1717851049542,-573.39,0.00016438,2]
[328828586,1717851049553,-565.11,0.00016438,2]
[328828587,1717851049562,-507.91,0.00016438,2]
[328828588,1717851049572,-1613.37,0.00016438,2]
[328828589,1717851049582,-684.32,0.00016438,2]
[328828590,1717851049592,-500.0,0.00016438,2]
[328828591,1717851049602,-500.0,0.00016438,2]
[328828592,1717851049616,-500.0,0.00016438,2]
[328828593,1717851049626,-500.0,0.00016438,2]
[328828594,1717851049635,-1266.66,0.00016438,4]
[328828595,1717851049646,-660.26,0.00016438,2]
[328828596,1717851049656,-500.0,0.00016438,2]
[328828597,1717851049666,-710.49,0.00016438,2]
[328828598,1717851049676,-500.0,0.00016438,2]
[328828599,1717851049687,-500.0,0.00016438,2]
[328828600,1717851049697,-1004.03,0.00016438,2]
[328828601,1717851049707,-500.0,0.00016438,2]
[328828602,1717851049717,-500.0,0.00016438,2]
[328828603,1717851049727,-196.13417489,0.00016438,2]
[328828604,1717851049755,-154.98450155,0.00016258,2]
[328828605,1717851049766,-303.86582511,0.00016438,2]
[328828606,1717851049776,-500.0,0.00016438,2]
[328828607,1717851049787,-500.0,0.00016438,2]
[328828608,1717851049798,-500.0,0.00016438,2]
[328828609,1717851049808,-500.0,0.00016438,2]
[328828610,1717851049819,-500.0,0.00016438,2]
[328828611,1717851049830,-637.11,0.00016438,2]
[328828612,1717851049841,-252.03967334,0.00016438,2]
[328828613,1717851092251,2217.84162947,0.00016613,7]
[328828614,1717851506197,154.98450155,9.999e-05,2]
[328828666,1717852232943,-260.23280879,0.000159,2]
[328828668,1717852232953,-390.02870637,0.00015999,2]
[328828670,1717852232965,-260.12980989,0.00015999,2]
[328828673,1717852233068,-6494.1268145,0.00015999,2]
[328828674,1717852233080,-11099.19091246,0.00015999,2]
[328828675,1717852233090,-3638.13254741,0.00016,2]
[328828676,1717852233100,-600.0,0.00016044,2]
[328828677,1717852233110,-600.0,0.00016211,2]
[328828678,1717852233120,-156.34628117,0.00016273,3]
[328828679,1717852233130,-152.693,0.00016307,2]
[328828680,1717852233139,-174.162,0.00016307,2]
[328828681,1717852233149,-150.069,0.00016307,2]
[328828682,1717852233160,-499.0,0.00016307,2]
[328828683,1717852233169,-150.0,0.00016307,2]
[328828684,1717852233178,-157.58912034,0.00016338,2]
[328828685,1717852233187,-13989.95450611,0.00016374,2]
[328828705,1717852241221,-3771.56529281,0.00016374,2]
[328828706,1717852241372,-476.18299996,0.00016374,2]
[328828707,1717852241384,-1298.19586907,0.00016374,2]
[328828708,1717852241396,-2168.42505343,0.00016374,2]
[328828709,1717852241408,-3304.82879354,0.00016374,2]
[328828714,1717852242646,-3638.16887528,0.00016374,2]
[328828716,1717852242656,-600.0,0.00016378,2]
[328828718,1717852242668,-9990.43112472,0.000164,2]
[328828719,1717852242862,-1961.36275003,0.000164,2]
[328828720,1717852242874,-40621.75360652,0.000164,2]
[328828773,1717852247548,-500.0,0.00016,2]
[328828774,1717852247558,-7459.55974507,0.000164,2]
[328828775,1717852247568,-17800.5349307,0.000164,2]
[328828776,1717852272371,270.62354186,0.00016436,7]
[328828777,1717852293618,211.23648545,0.00016986,7]
[328828778,1717852336650,722.17610158,9.999e-05,2]
[328828779,1717852415514,372.58268352,9.999e-05,2]
[328828780,1717852485167,489.67867836,9.999e-05,2]
[328828781,1717852560451,282.41230643,9.999e-05,2]
[328828782,1717852597123,154.98450155,9.999e-05,2]
[328828783,1717852599036,1501.05383916,9.999e-05,2]
[328828784,1717852640220,759.78913764,9.999e-05,2]
[328828797,1717852713709,156.89035259,9.999e-05,2]
[328828798,1717852714864,552.32050934,9.999e-05,2]
[328828799,1717852738315,515.52689997,9.999e-05,2]
[328828800,1717852753306,303.20651555,9.999e-05,2]
[328828801,1717852760106,1979.68991043,9.999e-05,2]
[328828803,1717853003170,21100.97501259,9.999e-05,2]
[328828804,1717853003208,10919.68902583,9.999e-05,2]
[328828805,1717853003236,354.30212784,9.999e-05,2]
[328828882,1717853432741,-3071.27011912,0.00014235,2]
[328828884,1717853432751,-3000.0,0.00014236,2]
[328828885,1717853432761,-215.631395,0.00014486,2]
[328828886,1717853432771,-1000.0,0.00015,2]
[328828887,1717853432781,-24900.0,0.00015249,2]
[328828889,1717853432791,-250.0,0.00015328,2]
[328828891,1717853432800,-13700.03572398,0.00015368,2]
[328828892,1717853432809,-629.92272793,0.00015881,2]
[328828893,1717853432819,-4237.72657179,0.00015988,2]
[328828894,1717853432829,-1000.0,0.00016,2]
[328828895,1717853432839,-590.386479,0.00016,2]
[328828896,1717853432848,-156.19711529,0.00016273,3]
[328828897,1717853432858,-621.88434023,0.00016307,2]
[328828898,1717853432868,-192.60892487,0.00016336,2]
[328828899,1717853432879,-192.60892487,0.00016337,2]
[328828900,1717853432889,-192.60892487,0.00016338,2]
[328828901,1717853432900,-7318.47452839,0.0001639,2]
[328828902,1717853432910,-58691.12840186,0.000164,2]
[328828960,1717853445649,-113095.07652744,0.000164,2]
[328828962,1717853445659,-231919.64591752,0.000164,2]
[328828965,1717853445669,-5751.56447932,0.000164,2]
[328828967,1717853445678,-5751.56447924,0.000164,2]
[328828969,1717853445687,-5751.56447924,0.000164,2]
[328828971,1717853445699,-150.0,0.00016416,2]
[328828972,1717853445709,-499.0,0.00016416,2]
[328828973,1717853445718,-156.58995625,0.00016434,2]
[328828974,1717853445727,-551.39540687,0.00016434,2]
[328828975,1717853445738,-514.52467594,0.00016434,2]
[328828976,1717853445748,-302.72476705,0.00016434,2]
[328828977,1717853445758,-1294.52780377,0.00016434,2]
[328828978,1717853445768,-590.386479,0.00016435,2]
[328828979,1717853445778,-231.50586644,0.00016436,2]
[328828980,1717853445787,-225.18968577,0.00016436,2]
[328828981,1717853445797,-1342.40609524,0.00016436,2]
[328828982,1717853445807,-1903.43712619,0.00016436,2]
[328828983,1717853445818,-11049.51431687,0.00016436,2]
[328828984,1717853445828,-2812.13279208,0.00016436,2]
[328828985,1717853445838,-303.96130094,0.00016436,2]
[328828986,1717853445848,-720.74038188,0.00016436,2]
[328828987,1717853445859,-712.91815986,0.00016436,2]
[328828988,1717853445869,-764.36637913,0.00016436,2]
[328828989,1717853445879,-281.85605547,0.00016436,2]
[328828990,1717853445890,-179.8180555,0.00016436,2]
[328828991,1717853445900,-1498.62078344,0.00016436,2]
[328828992,1717853445910,-404.58962679,0.00016436,2]
[328828993,1717853445921,-945.32067944,0.00016436,2]
[328828994,1717853445931,-154.98450155,0.00016436,2]
[328828995,1717853445942,-215.95975088,0.00016436,2]
[328828996,1717853445953,-691.28568206,0.00016436,2]
[328828997,1717853445962,-6713.54318341,0.00016436,2]
[328828998,1717853445973,-156.54227334,0.00016436,2]
[328828999,1717853445985,-1269.45637468,0.00016436,2]
[328829000,1717853445996,-539.0,0.00016436,2]
[328829001,1717853446006,-14406.6547097,0.00016436,2]
[328829002,1717853446016,-9483.49243494,0.00016436,2]
[328829003,1717853446027,-528.16653539,0.00016436,2]
[328829004,1717853446037,-275.41755216,0.00016436,2]
[328829005,1717853446047,-836.90615522,0.00016436,2]
[328829006,1717853446057,-309.89154493,0.00016436,2]
[328829007,1717853446068,-164.59629886,0.00016437,2]
[328829008,1717853446078,-299.83396246,0.00016438,2]
[328829009,1717853446088,-500.0,0.00016438,2]
[328829010,1717853446098,-500.0,0.00016438,2]
[328829011,1717853446108,-516.47494295,0.00016438,2]
[328829012,1717853446122,-500.0,0.00016438,2]
[328829013,1717853446132,-500.0,0.00016438,2]
[328829014,1717853446142,-500.33247546,0.00016438,2]
[328829015,1717853446153,-372.49080981,0.00016438,2]
[328829018,1717853446164,-500.0,0.00016438,2]
[328829021,1717853446174,-500.0,0.00016438,2]
[328829024,1717853446185,-500.0,0.00016438,2]
[328829027,1717853446196,-500.34799013,0.00016438,2]
[328829029,1717853446209,-617.61698666,0.00016438,2]
[328829031,1717853446219,-500.0,0.00016438,2]
[328829033,1717853446230,-500.79307094,0.00016438,2]
[328829035,1717853446240,-608.49,0.00016438,2]
[328829037,1717853446250,-532.81857369,0.00016438,2]
[328829039,1717853446260,-502.32752985,0.00016438,2]
[328829040,1717853446270,-501.1815366,0.00016438,2]
[328829041,1717853446280,-500.0,0.00016438,2]
[328829042,1717853446291,-504.25967827,0.00016438,2]
[328829043,1717853446300,-500.0,0.00016438,2]
[328829044,1717853446310,-504.82475911,0.00016438,2]
[328829045,1717853446320,-500.0,0.00016438,2]
[328829046,1717853446330,-196.03882665,0.00016438,2]
[328829047,1717853446340,-500.0,0.00016438,2]
[328829048,1717853446351,-258.3114546,0.00016438,2]
[328829049,1717853446361,-503.73079873,0.00016438,2]
[328829050,1717853446371,-500.0,0.00016438,2]
[328829052,1717853446381,-500.0,0.00016438,2]
[328829054,1717853446390,-509.45681782,0.00016438,2]
[328829055,1717853446400,-500.0,0.00016438,2]
[328829057,1717853446410,-500.0,0.00016438,2]
[328829058,1717853446420,-500.0,0.00016438,2]
[328829059,1717853446430,-515.66906148,0.00016438,2]
[328829060,1717853446441,-507.34362098,0.00016438,2]
[328829061,1717853446453,-500.0,0.00016438,2]
[328829062,1717853446463,-175.33627779,0.00016438,2]
[328829063,1717853446473,-998.49,0.00016438,2]
[328829064,1717853446481,-500.0,0.00016438,2]
[328829065,1717853446492,-500.0,0.00016438,2]
[328829066,1717853446502,-511.00909559,0.00016438,2]
[328829067,1717853446512,-503.63462786,0.00016438,2]
[328829068,1717853446522,-505.95545993,0.00016438,2]
[328829069,1717853446532,-489.57379385,0.00016438,2]
[328829070,1717853446543,-500.0,0.00016438,2]
[328829071,1717853446552,-500.0,0.00016438,2]
[328829072,1717853446562,-273.9946026,0.00016438,2]
[328829073,1717853446573,-502.65212316,0.00016438,2]
[328829074,1717853446585,-501.94891195,0.00016438,2]
[328829075,1717853446595,-506.13114056,0.00016438,2]
[328829076,1717853446605,-500.0,0.00016438,2]
[328829077,1717853446616,-504.31001389,0.00016438,2]
[328829078,1717853446626,-503.27054577,0.00016438,2]
[328829079,1717853446636,-500.0,0.00016438,2]
[328829080,1717853446646,-440.11530387,0.00016438,2]
[328829081,1717853446656,-500.0,0.00016438,2]
[328829082,1717853446666,-500.0,0.00016438,2]
[328829083,1717853446676,-500.0,0.00016438,2]
[328829084,1717853446686,-565.44,0.00016438,2]
[328829086,1717853446808,-502.75555247,0.00016438,2]
[328829088,1717853446819,-500.0,0.00016438,2]
[328829089,1717853446829,-501.53919583,0.00016438,2]
[328829090,1717853446840,-500.0,0.00016438,2]
[328829091,1717853446850,-500.0,0.00016438,2]
[328829092,1717853446861,-500.0,0.00016438,2]
[328829094,1717853446871,-531.58758906,0.00016438,2]
[328829096,1717853446882,-500.0,0.00016438,2]
[328829099,1717853446892,-283.00068631,0.00016438,2]
[328829102,1717853446902,-503.39163515,0.00016438,2]
[328829105,1717853446911,-500.0,0.00016438,2]
[328829107,1717853446921,-502.93864445,0.00016438,2]
[328829111,1717853446932,-504.20624,0.00016438,2]
[328829114,1717853446943,-500.0,0.00016438,2]
[328829117,1717853446957,-500.0,0.00016438,2]
[328829119,1717853446967,-500.0,0.00016438,2]
[328829120,1717853446977,-500.0,0.00016438,2]
[328829121,1717853446987,-500.0,0.00016438,2]
[328829122,1717853446997,-523.11280197,0.00016438,2]
[328829123,1717853447006,-504.14216852,0.00016438,2]
[328829124,1717853447016,-500.0,0.00016438,2]
[328829125,1717853447026,-500.0,0.00016438,2]
[328829126,1717853447036,-527.03551814,0.00016438,2]
[328829127,1717853447046,-812.32,0.00016438,2]
[328829128,1717853447056,-500.0,0.00016438,2]
[328829129,1717853447066,-507.84822277,0.00016438,2]
[328829130,1717853447076,-500.0,0.00016438,2]
[328829131,1717853447086,-502.13325846,0.00016438,2]
[328829132,1717853447096,-500.0,0.00016438,2]